fUST/lending_fUST_20240705
["ID","MTS","AMOUNT","RATE_DAILY","PERIOD"]
[331169021,1720116642039,-500.0,0.00013698,2]
[331169022,1720116642048,-500.0,0.00013698,2]
[331169023,1720116642057,-500.0,0.00013698,2]
[331169024,1720116642067,-500.0,0.00013698,2]
[331169025,1720116642076,-500.0,0.00013698,2]
[331169026,1720116642085,-500.0,0.00013698,2]
[331169027,1720116642095,-500.0,0.00013698,2]
[331169028,1720116642104,-500.0,0.00013698,2]
[331169029,1720116642114,-500.0,0.00013698,2]
[331169030,1720116642124,-510.7819092,0.00013698,2]
[331169031,1720116642134,-501.76799852,0.00013698,2]
[331169032,1720116642143,-536.49865275,0.00013698,2]
[331169033,1720116642153,-500.0,0.00013698,2]
[331169034,1720116642163,-500.0,0.00013698,2]
[331169035,1720116642172,-500.0,0.00013698,2]
[331169036,1720116642186,-500.0,0.00013698,2]
[331169037,1720116642195,-500.0,0.00013698,2]
[331169038,1720116642205,-500.0,0.00013698,2]
[331169039,1720116642214,-500.0,0.00013698,2]
[331169040,1720116642226,-500.0,0.00013698,2]
[331169041,1720116642237,-500.0,0.00013698,2]
[331169042,1720116642246,-500.0,0.00013698,2]
[331169043,1720116642256,-500.0,0.00013698,2]
[331169044,1720116642270,-500.0,0.00013698,2]
[331169045,1720116642280,-500.0,0.00013698,2]
[331169046,1720116642290,-500.0,0.00013698,2]
[331169047,1720116642299,-500.0,0.00013698,2]
[331169048,1720116642309,-500.0,0.00013698,2]
[331169049,1720116642318,-500.0,0.00013698,2]
[331169050,1720116642328,-500.0,0.00013698,2]
[331169051,1720116642337,-292.33548338,0.00013698,2]
[331169052,1720116642347,-504.66005101,0.00013698,2]
[331169053,1720116642357,-503.06600599,0.00013698,2]
[331169054,1720116642367,-504.30316404,0.00013698,2]
[331169055,1720116642377,-500.0,0.00013698,2]
[331169056,1720116642387,-500.0,0.00013698,2]
[331169057,1720116642397,-364.04299557,0.00013698,2]
[331169058,1720116642406,-500.0,0.00013698,2]
[331169059,1720116642415,-500.0,0.00013698,2]
[331169060,1720116642425,-500.0,0.00013698,2]
[331169063,1720116642435,-164.54551331,0.00013698,2]
[331169066,1720116642444,-500.0,0.00013698,2]
[331169069,1720116642454,-690.44,0.00013698,2]
[331169072,1720116642464,-493.88012096,0.00013698,2]
[331169074,1720116642473,-500.0,0.00013698,2]
[331169077,1720116642484,-500.0,0.00013698,2]
[331169080,1720116642493,-200.0,0.00013698,2]
[331169083,1720116642503,-611.26,0.00013698,2]
[331169086,1720116642512,-158.80505934,0.00013698,2]
[331169088,1720116642521,-500.0,0.00013698,2]
[331169090,1720116642530,-500.0,0.00013698,2]
[331169092,1720116642540,-500.0,0.00013698,2]
[331169094,1720116642549,-500.0,0.00013698,2]
[331169096,1720116642558,-500.0,0.00013698,2]
[331169098,1720116642567,-500.0,0.00013698,2]
[331169100,1720116642575,-534.91260146,0.00013698,2]
[331169102,1720116642584,-500.0,0.00013698,2]
[331169104,1720116642593,-500.0,0.00013698,2]
[331169106,1720116642602,-500.0,0.00013698,2]
[331169108,1720116642611,-500.0,0.00013698,2]
[331169110,1720116642620,-506.22383554,0.00013698,2]
[331169112,1720116642629,-500.0,0.00013698,2]
[331169113,1720116642638,-500.0,0.00013698,2]
[331169115,1720116642647,-500.0,0.00013698,2]
[331169117,1720116642656,-500.0,0.00013698,2]
[331169119,1720116642664,-504.50360655,0.00013698,2]
[331169120,1720116642673,-500.0,0.00013698,2]
[331169122,1720116642682,-638.25970023,0.00013698,2]
[331169125,1720116642691,-514.68,0.00013698,2]
[331169129,1720116642701,-616.91,0.00013698,2]
[331169133,1720116642710,-500.0,0.00013698,2]
[331169137,1720116642719,-500.0,0.00013698,2]
[331169140,1720116642729,-500.0,0.00013698,2]
[331169142,1720116642738,-500.0,0.00013698,2]
[331169145,1720116642747,-500.0,0.00013698,2]
[331169147,1720116642756,-500.0,0.00013698,2]
[331169150,1720116642766,-500.0,0.00013698,2]
[331169153,1720116642775,-500.0,0.00013698,2]
[331169157,1720116642786,-500.0,0.00013698,2]
[331169159,1720116642795,-500.0,0.00013698,2]
[331169161,1720116642804,-561.39,0.00013698,2]
[331169164,1720116642814,-500.0,0.00013698,2]
[331169168,1720116642824,-500.0,0.00013698,2]
[331169170,1720116642833,-500.0,0.00013698,2]
[331169173,1720116642842,-500.0,0.00013698,2]
[331169176,1720116642851,-500.0,0.00013698,2]
[331169179,1720116642860,-500.0,0.00013698,2]
[331169182,1720116642869,-500.0,0.00013698,2]
[331169185,1720116642878,-505.56508567,0.00013698,2]
[331169188,1720116642888,-500.0,0.00013698,2]
[331169190,1720116642896,-500.0,0.00013698,2]
[331169193,1720116642906,-869.14,0.00013698,2]
[331169196,1720116642915,-567.98322241,0.00013698,2]
[331169199,1720116642924,-500.0,0.00013698,2]
[331169202,1720116642933,-500.0,0.00013698,2]
[331169205,1720116642942,-500.0,0.00013698,2]
[331169207,1720116642951,-500.0,0.00013698,2]
[331169211,1720116642960,-500.0,0.00013698,2]
[331169213,1720116642970,-500.0,0.00013698,2]
[331169216,1720116642980,-500.0,0.00013698,2]
[331169219,1720116642990,-500.0,0.00013698,2]
[331169221,1720116642999,-514.74497265,0.00013698,2]
[331169223,1720116643008,-2191.0,0.00013698,2]
[331169225,1720116643017,-500.0,0.00013698,2]
[331169226,1720116643027,-500.0,0.00013698,2]
[331169228,1720116643036,-500.0,0.00013698,2]
[331169231,1720116643046,-500.0,0.00013698,2]
[331169233,1720116643055,-500.0,0.00013698,2]
[331169234,1720116643064,-500.0,0.00013698,2]
[331169237,1720116643076,-500.0,0.00013698,2]
[331169239,1720116643086,-550.83221088,0.00013698,2]
[331169240,1720116643095,-500.0,0.00013698,2]
[331169242,1720116643104,-500.0,0.00013698,2]
[331169244,1720116643113,-2608.98,0.00013698,2]
[331169246,1720116643123,-500.0,0.00013698,2]
[331169248,1720116643132,-507.29910008,0.00013698,2]
[331169250,1720116643141,-509.14129733,0.00013698,2]
[331169252,1720116643150,-573.15067934,0.00013698,2]
[331169254,1720116643159,-322.61914106,0.00013698,2]
[331169256,1720116643168,-501.55052969,0.00013698,2]
[331169258,1720116643178,-500.0,0.00013698,2]
[331169260,1720116643188,-1428.55,0.00013698,2]
[331169262,1720116643200,-500.0,0.00013698,2]
[331169264,1720116643210,-614.90328828,0.00013698,2]
[331169266,1720116643219,-357.70603781,0.00013698,2]
[331169268,1720116643231,-500.0,0.00013698,2]
[331169270,1720116643241,-500.0,0.00013698,2]
[331169272,1720116643250,-854.63,0.00013698,2]
[331169274,1720116643259,-500.0,0.00013698,2]
[331169276,1720116643268,-500.0,0.00013698,2]
[331169278,1720116643280,-500.0,0.00013698,2]
[331169280,1720116643291,-500.0,0.00013698,2]
[331169282,1720116643299,-500.0,0.00013698,2]
[331169284,1720116643309,-500.0,0.00013698,2]
[331169286,1720116643318,-500.0,0.00013698,2]
[331169288,1720116643327,-500.0,0.00013698,2]
[331169290,1720116643336,-500.0,0.00013698,2]
[331169292,1720116643345,-451.19898277,0.00013698,2]
[331169294,1720116643355,-500.0,0.00013698,2]
[331169296,1720116643364,-500.0,0.00013698,2]
[331169298,1720116643373,-500.0,0.00013698,2]
[331169300,1720116643382,-505.86390228,0.00013698,2]
[331169302,1720116643391,-500.0,0.00013698,2]
[331169304,1720116643401,-937.63,0.00013698,2]
[331169306,1720116643410,-500.0,0.00013698,2]
[331169308,1720116643419,-7574.65,0.00013698,2]
[331169310,1720116643429,-500.0,0.00013698,2]
[331169312,1720116643438,-521.50379023,0.00013698,2]
[331169313,1720116643447,-500.0,0.00013698,2]
[331169315,1720116643456,-500.0,0.00013698,2]
[331169317,1720116643465,-203.09771668,0.00013698,2]
[331169319,1720116643477,-501.87428358,0.00013698,2]
[331169321,1720116643486,-500.0,0.00013698,2]
[331169323,1720116643495,-500.0,0.00013698,2]
[331169325,1720116643505,-4805.61,0.00013698,2]
[331169327,1720116643514,-500.0,0.00013698,2]
[331169329,1720116643524,-500.0,0.00013698,2]
[331169332,1720116643533,-500.0,0.00013698,2]
[331169334,1720116643542,-502.20351532,0.00013698,2]
[331169335,1720116643552,-500.0,0.00013698,2]
[331169337,1720116643561,-500.0,0.00013698,2]
[331169340,1720116643571,-500.0,0.00013698,2]
[331169342,1720116643581,-500.0,0.00013698,2]
[331169344,1720116643590,-500.0,0.00013698,2]
[331169346,1720116643599,-501.11221528,0.00013698,2]
[331169348,1720116643609,-686.89,0.00013698,2]
[331169349,1720116643618,-500.0,0.00013698,2]
[331169351,1720116643627,-500.0,0.00013698,2]
[331169353,1720116643636,-500.0,0.00013698,2]
[331169355,1720116643646,-500.0,0.00013698,2]
[331169358,1720116643655,-500.0,0.00013698,2]
[331169359,1720116643664,-500.0,0.00013698,2]
[331169361,1720116643673,-2684.55,0.00013698,2]
[331169363,1720116643683,-198.20603358,0.00013698,2]
[331169365,1720116643692,-500.0,0.00013698,2]
[331169367,1720116643701,-500.0,0.00013698,2]
[331169369,1720116643711,-500.0,0.00013698,2]
[331169371,1720116643720,-500.0,0.00013698,2]
[331169373,1720116643731,-500.0,0.00013698,2]
[331169375,1720116643739,-524.0653462,0.00013698,2]
[331169377,1720116643748,-500.0,0.00013698,2]
[331169379,1720116643758,-500.0,0.00013698,2]
[331169381,1720116643767,-500.0,0.00013698,2]
[331169383,1720116643778,-539.69634998,0.00013698,2]
[331169385,1720116643787,-6698.25,0.00013698,2]
[331169387,1720116643796,-506.93289652,0.00013698,2]
[331169389,1720116643805,-500.0,0.00013698,2]
[331169391,1720116643815,-500.0,0.00013698,2]
[331169393,1720116643825,-500.0,0.00013698,2]
[331169395,1720116643836,-501.7180616,0.00013698,2]
[331169397,1720116643844,-500.0,0.00013698,2]
[331169399,1720116643853,-500.0,0.00013698,2]
[331169400,1720116643862,-502.38824736,0.00013698,2]
[331169402,1720116643871,-500.0,0.00013698,2]
[331169404,1720116643880,-500.0,0.00013698,2]
[331169406,1720116643890,-180.51399735,0.00013698,2]
[331169408,1720116643899,-500.0,0.00013698,2]
[331169410,1720116643907,-500.0,0.00013698,2]
[331169412,1720116643916,-500.0,0.00013698,2]
[331169414,1720116643925,-500.0,0.00013698,2]
[331169416,1720116643935,-507.73435802,0.00013698,2]
[331169418,1720116643945,-500.0,0.00013698,2]
[331169420,1720116643954,-500.62764711,0.00013698,2]
[331169422,1720116643963,-17530.33,0.00013698,2]
[331169424,1720116643972,-562.52289657,0.00013698,2]
[331169426,1720116643983,-504.62042434,0.00013698,2]
[331169428,1720116643992,-500.0,0.00013698,2]
[331169430,1720116644001,-500.0,0.00013698,2]
[331169432,1720116644012,-500.0,0.00013698,2]
[331169434,1720116644021,-500.0,0.00013698,2]
[331169436,1720116644030,-500.0,0.00013698,2]
[331169438,1720116644039,-1688.93,0.00013698,2]
[331169440,1720116644048,-500.0,0.00013698,2]
[331169442,1720116644058,-500.0,0.00013698,2]
[331169444,1720116644067,-500.0,0.00013698,2]
[331169446,1720116644076,-500.0,0.00013698,2]
[331169458,1720116644180,-500.0,0.00013698,2]
[331169460,1720116644190,-500.0,0.00013698,2]
[331169461,1720116644204,-500.0,0.00013698,2]
[331169463,1720116644213,-507.40428864,0.00013698,2]
[331169466,1720116644224,-955.08,0.00013698,2]
[331169468,1720116644235,-2976.84,0.00013698,2]
[331169470,1720116644245,-1118.27,0.00013698,2]
[331169471,1720116644254,-500.0,0.00013698,2]
[331169474,1720116644264,-500.0,0.00013698,2]
[331169475,1720116644274,-500.0,0.00013698,2]
[331169477,1720116644283,-500.0,0.00013698,2]
[331169479,1720116644292,-500.0,0.00013698,2]
[331169481,1720116644301,-3503.12,0.00013698,2]
[331169483,1720116644311,-3503.12,0.00013698,2]
[331169485,1720116644320,-3503.12,0.00013698,2]
[331169487,1720116644330,-3503.12,0.00013698,2]
[331169489,1720116644339,-3503.12,0.00013698,2]
[331169491,1720116644348,-500.0,0.00013698,2]
[331169493,1720116644357,-3503.12,0.00013698,2]
[331169495,1720116644367,-5026.68,0.00013698,2]
[331169497,1720116644376,-3503.12,0.00013698,2]
[331169499,1720116644385,-500.0,0.00013698,2]
[331169501,1720116644395,-567.3157784,0.00013698,2]
[331169503,1720116644404,-500.0,0.00013698,2]
[331169505,1720116644414,-500.0,0.00013698,2]
[331169507,1720116644423,-500.0,0.00013698,2]
[331169509,1720116644432,-500.0,0.00013698,2]
[331169511,1720116644442,-500.0,0.00013698,2]
[331169513,1720116644451,-500.0,0.00013698,2]
[331169515,1720116644460,-441.89663203,0.00013698,2]
[331169516,1720116644470,-1452.56,0.00013698,2]
[331169517,1720116644480,-500.0,0.00013698,2]
[331169519,1720116644490,-500.0,0.00013698,2]
[331169521,1720116644499,-500.0,0.00013698,2]
[331169523,1720116644508,-503.3846824,0.00013698,2]
[331169525,1720116644518,-500.0,0.00013698,2]
[331169527,1720116644527,-500.0,0.00013698,2]
[331169529,1720116644536,-500.0,0.00013698,2]
[331169531,1720116644545,-500.0,0.00013698,2]
[331169533,1720116644554,-500.0,0.00013698,2]
[331169535,1720116644563,-500.0,0.00013698,2]
[331169537,1720116644572,-501.53968215,0.00013698,2]
[331169539,1720116644582,-1096.17,0.00013698,2]
[331169541,1720116644591,-500.0,0.00013698,2]
[331169543,1720116644600,-500.0,0.00013698,2]
[331169545,1720116644609,-500.0,0.00013698,2]
[331169547,1720116644618,-515.36,0.00013698,2]
[331169549,1720116644627,-199.30313638,0.00013698,2]
[331169551,1720116644637,-500.0,0.00013698,2]
[331169553,1720116644646,-840.11,0.00013698,2]
[331169555,1720116644655,-500.0,0.00013698,2]
[331169557,1720116644664,-500.0,0.00013698,2]
[331169558,1720116644673,-500.0,0.00013698,2]
[331169560,1720116644682,-500.0,0.00013698,2]
[331169562,1720116644691,-500.0,0.00013698,2]
[331169564,1720116644700,-500.0,0.00013698,2]
[331169567,1720116644710,-500.0,0.00013698,2]
[331169569,1720116644719,-501.44784496,0.00013698,2]
[331169571,1720116644730,-4275.55,0.00013698,2]
[331169572,1720116644739,-752.25,0.00013698,2]
[331169575,1720116644748,-504.44099978,0.00013698,2]
[331169577,1720116644758,-500.0,0.00013698,2]
[331169578,1720116644768,-500.0,0.00013698,2]
[331169580,1720116644777,-503.24890876,0.00013698,2]
[331169582,1720116644787,-1238.884332,0.00013699,2]
[331169584,1720116644796,-3000.0,0.00013699,2]
[331169587,1720116644808,-21500.2965989,0.00013699,2]
[331169589,1720116644819,-41693.3590325,0.00013962,2]
[331169590,1720116644828,-500.0,0.00013971,2]
[331169592,1720116644837,-208.54,0.00013971,2]
[331169594,1720116644846,-3503.12,0.00013971,2]
[331169596,1720116644855,-3503.12,0.00013971,2]
[331169598,1720116644865,-3503.12,0.00013971,2]
[331169600,1720116644874,-3503.12,0.00013971,2]
[331169602,1720116644884,-509.93924182,0.00013972,2]
[331169604,1720116644893,-500.0,0.00013972,2]
[331169606,1720116644903,-210.30514185,0.00013972,2]
[331169608,1720116644911,-500.0,0.00013972,2]
[331169610,1720116644921,-500.0,0.00013972,2]
[331169612,1720116644930,-500.0,0.00013972,2]
[331169614,1720116644939,-500.0,0.00013972,2]
[331169616,1720116644948,-734.56,0.00013972,2]
[331169618,1720116644958,-500.0,0.00013972,2]
[331169620,1720116644967,-500.0,0.00013972,2]
[331169622,1720116644976,-500.0,0.00013972,2]
[331169624,1720116644986,-500.0,0.00013972,2]
[331169626,1720116644995,-500.0,0.00013972,2]
[331169628,1720116645004,-340.41059684,0.00013972,2]
[331169630,1720116645013,-506.80036557,0.00013972,2]
[331169632,1720116645022,-500.0,0.00013972,2]
[331169634,1720116645031,-500.0,0.00013972,2]
[331169636,1720116645040,-500.0,0.00013972,2]
[331169638,1720116645050,-338.67036204,0.00013972,2]
[331169640,1720116645059,-500.0,0.00013972,2]
[331169642,1720116645068,-500.0,0.00013972,2]
[331169644,1720116645078,-500.0,0.00013972,2]
[331169646,1720116645087,-500.0,0.00013972,2]
[331169648,1720116645096,-500.0,0.00013972,2]
[331169650,1720116645105,-500.0,0.00013972,2]
[331169652,1720116645114,-500.0,0.00013972,2]
[331169654,1720116645123,-504.04426348,0.00013972,2]
[331169656,1720116645133,-500.0,0.00013972,2]
[331169658,1720116645142,-514.09850832,0.00013972,2]
[331169660,1720116645151,-501.39494377,0.00013972,2]
[331169662,1720116645161,-596.5,0.00013972,2]
[331169664,1720116645170,-579.28430511,0.00013972,2]
[331169666,1720116645182,-500.0,0.00013972,2]
[331169668,1720116645191,-734.79,0.00013972,2]
[331169669,1720116645203,-501.10058806,0.00013972,2]
[331169671,1720116645212,-500.0,0.00013972,2]
[331169673,1720116645222,-500.0,0.00013972,2]
[331169675,1720116645234,-500.0,0.00013972,2]
[331169676,1720116645243,-500.0,0.00013972,2]
[331169678,1720116645253,-514.69,0.00013972,2]
[331169679,1720116645262,-500.0,0.00013972,2]
[331169681,1720116645276,-500.0,0.00013972,2]
[331169683,1720116645286,-500.0,0.00013972,2]
[331169685,1720116645295,-500.0,0.00013972,2]
[331169687,1720116645303,-500.0,0.00013972,2]
[331169689,1720116645313,-500.0,0.00013972,2]
[331169691,1720116645322,-502.92928497,0.00013972,2]
[331169693,1720116645332,-500.0,0.00013972,2]
[331169695,1720116645341,-577.75,0.00013972,2]
[331169697,1720116645350,-500.0,0.00013972,2]
[331169699,1720116645360,-500.0,0.00013972,2]
[331169701,1720116645370,-500.0,0.00013972,2]
[331169703,1720116645379,-500.0,0.00013972,2]
[331169705,1720116645388,-500.0,0.00013972,2]
[331169706,1720116645397,-500.0,0.00013972,2]
[331169708,1720116645406,-500.0,0.00013972,2]
[331169709,1720116645416,-277.2548668,0.00013972,2]
[331169710,1720116645425,-500.0,0.00013972,2]
[331169711,1720116645434,-500.0,0.00013972,2]
[331169712,1720116645443,-500.00150982,0.00013972,2]
[331169713,1720116645452,-500.0,0.00013972,2]
[331169714,1720116645462,-500.0,0.00013972,2]
[331169715,1720116645471,-500.0,0.00013972,2]
[331169716,1720116645482,-500.0,0.00013972,2]
[331169717,1720116645491,-1209.33,0.00013972,2]
[331169718,1720116645500,-500.0,0.00013972,2]
[331169719,1720116645509,-500.0,0.00013972,2]
[331169720,1720116645518,-500.0,0.00013972,2]
[331169721,1720116645527,-500.0,0.00013972,2]
[331169722,1720116645537,-803.35,0.00013972,2]
[331169723,1720116645547,-360.09546543,0.00013972,2]
[331169724,1720116645556,-500.0,0.00013972,2]
[331169725,1720116645565,-500.0,0.00013972,2]
[331169726,1720116645574,-567.38,0.00013972,2]
[331169727,1720116645583,-330.18593137,0.00013972,2]
[331169728,1720116645592,-500.0,0.00013972,2]
[331169729,1720116645602,-500.0,0.00013972,2]
[331169730,1720116645611,-500.0,0.00013972,2]
[331169731,1720116645620,-509.74369499,0.00013972,2]
[331169732,1720116645630,-500.0,0.00013972,2]
[331169733,1720116645640,-500.0,0.00013972,2]
[331169734,1720116645649,-500.0,0.00013972,2]
[331169735,1720116645659,-501.20225164,0.00013972,2]
[331169736,1720116645669,-500.0,0.00013972,2]
[331169737,1720116645678,-1440.93,0.00013972,2]
[331169738,1720116645688,-500.0,0.00013972,2]
[331169739,1720116645697,-615.69,0.00013972,2]
[331169740,1720116645707,-398.27813028,0.00013972,2]
[331169741,1720116645717,-500.0,0.00013972,2]
[331169742,1720116645728,-388.6131425,0.00013972,2]
[331169743,1720116645738,-500.0,0.00013972,2]
[331169744,1720116645747,-500.0,0.00013972,2]
[331169745,1720116645756,-500.0,0.00013972,2]
[331169746,1720116645766,-500.0,0.00013972,2]
[331169747,1720116645775,-500.0,0.00013972,2]
[331169748,1720116645785,-500.0,0.00013972,2]
[331169749,1720116645795,-500.0,0.00013972,2]
[331169750,1720116645804,-411.25285483,0.00013972,2]
[331169751,1720116645813,-500.0,0.00013972,2]
[331169752,1720116645823,-500.0,0.00013972,2]
[331169753,1720116645833,-500.0,0.00013972,2]
[331169754,1720116645842,-500.0,0.00013972,2]
[331169755,1720116645852,-500.0,0.00013972,2]
[331169756,1720116645862,-500.0,0.00013972,2]
[331169757,1720116645872,-500.0,0.00013972,2]
[331169758,1720116645881,-500.0,0.00013972,2]
[331169759,1720116645890,-500.0,0.00013972,2]
[331169760,1720116645900,-500.0,0.00013972,2]
[331169761,1720116645910,-506.17075588,0.00013972,2]
[331169762,1720116645919,-500.0,0.00013972,2]
[331169763,1720116645928,-500.0,0.00013972,2]
[331169764,1720116645938,-6635.75,0.00013972,2]
[331169765,1720116645947,-500.0,0.00013972,2]
[331169766,1720116645958,-500.0,0.00013972,2]
[331169767,1720116645967,-924.74,0.00013972,2]
[331169768,1720116645978,-500.0,0.00013972,2]
[331169769,1720116645988,-500.0,0.00013972,2]
[331169770,1720116645997,-1164.31,0.00013972,2]
[331169771,1720116646007,-500.0,0.00013972,2]
[331169772,1720116646017,-457.48401546,0.00013972,2]
[331169773,1720116646026,-361.23,0.00013972,2]
[331169774,1720116646036,-500.0,0.00013972,2]
[331169775,1720116646046,-587.9,0.00013972,2]
[331169776,1720116646055,-500.0,0.00013972,2]
[331169777,1720116646065,-3407.86,0.00013972,2]
[331169778,1720116646075,-515.53514878,0.00013972,2]
[331169779,1720116646085,-511.367925,0.00013972,2]
[331169780,1720116646095,-500.0,0.00013972,2]
[331169781,1720116646104,-500.0,0.00013972,2]
[331169782,1720116646113,-500.0,0.00013972,2]
[331169783,1720116646122,-500.0,0.00013972,2]
[331169784,1720116646132,-500.0,0.00013972,2]
[331169787,1720116646141,-436.84,0.00013972,2]
[331169789,1720116646150,-688.24,0.00013972,2]
[331169791,1720116646161,-500.0,0.00013972,2]
[331169793,1720116646170,-654.16,0.00013972,2]
[331169795,1720116646183,-500.0,0.00013972,2]
[331169797,1720116646193,-508.53292733,0.00013972,2]
[331169798,1720116646203,-500.0,0.00013972,2]
[331169800,1720116646212,-511.35171382,0.00013972,2]
[331169802,1720116646223,-500.0,0.00013972,2]
[331169803,1720116646234,-500.0,0.00013972,2]
[331169804,1720116646243,-500.0,0.00013972,2]
[331169805,1720116646253,-500.0,0.00013972,2]
[331169806,1720116646344,-558.58,0.00013972,2]
[331169807,1720116646365,-503.74093966,0.00013972,2]
[331169808,1720116646374,-500.0,0.00013972,2]
[331169809,1720116646384,-524.4,0.00013972,2]
[331169810,1720116646393,-500.0,0.00013972,2]
[331169811,1720116646403,-500.0,0.00013972,2]
[331169812,1720116646412,-500.0,0.00013972,2]
[331169813,1720116646423,-500.0,0.00013972,2]
[331169814,1720116646432,-500.0,0.00013972,2]
[331169815,1720116646442,-512.4126193,0.00013972,2]
[331169817,1720116646452,-500.0,0.00013972,2]
[331169818,1720116646463,-683.65,0.00013972,2]
[331169819,1720116646472,-500.0,0.00013972,2]
[331169820,1720116646482,-500.0,0.00013972,2]
[331169821,1720116646492,-500.0,0.00013972,2]
[331169822,1720116646501,-500.0,0.00013972,2]
[331169823,1720116646511,-320.52408321,0.00013972,2]
[331169824,1720116646520,-500.0,0.00013972,2]
[331169825,1720116646530,-500.0,0.00013972,2]
[331169826,1720116646540,-500.0,0.00013972,2]
[331169827,1720116646549,-500.0,0.00013972,2]
[331169828,1720116646559,-608.48,0.00013972,2]
[331169829,1720116646569,-500.0,0.00013972,2]
[331169830,1720116646579,-503.50219677,0.00013972,2]
[331169831,1720116646588,-500.0,0.00013972,2]
[331169832,1720116646597,-500.0,0.00013972,2]
[331169833,1720116646607,-500.0,0.00013972,2]
[331169834,1720116646616,-500.0,0.00013972,2]
[331169835,1720116646626,-500.0,0.00013972,2]
[331169836,1720116646636,-500.0,0.00013972,2]
[331169837,1720116646645,-500.0,0.00013972,2]
[331169838,1720116646655,-500.0,0.00013972,2]
[331169839,1720116646664,-500.0,0.00013972,2]
[331169840,1720116646673,-500.0,0.00013972,2]
[331169841,1720116646682,-500.0,0.00013972,2]
[331169842,1720116646692,-500.0,0.00013972,2]
[331169843,1720116646701,-500.0,0.00013972,2]
[331169844,1720116646711,-690.44,0.00013972,2]
[331169845,1720116646720,-500.0,0.00013972,2]
[331169846,1720116646731,-611.26,0.00013972,2]
[331169847,1720116646741,-500.0,0.00013972,2]
[331169848,1720116646750,-500.0,0.00013972,2]
[331169849,1720116646759,-500.0,0.00013972,2]
[331169850,1720116646768,-500.0,0.00013972,2]
[331169851,1720116646777,-237.18240255,0.00013972,2]
[331169852,1720116646787,-500.0,0.00013972,2]
[331169854,1720116646798,-500.0,0.00013972,2]
[331169856,1720116646807,-500.0,0.00013972,2]
[331169858,1720116646818,-500.0,0.00013972,2]
[331169859,1720116646828,-514.68,0.00013972,2]
[331169860,1720116646837,-500.0,0.00013972,2]
[331169861,1720116646847,-616.91,0.00013972,2]
[331169862,1720116646856,-500.0,0.00013972,2]
[331169863,1720116646865,-500.0,0.00013972,2]
[331169864,1720116646874,-500.0,0.00013972,2]
[331169865,1720116646883,-500.0,0.00013972,2]
[331169866,1720116646892,-500.0,0.00013972,2]
[331169867,1720116646901,-516.42381261,0.00013972,2]
[331169868,1720116646911,-500.0,0.00013972,2]
[331169869,1720116646920,-500.0,0.00013972,2]
[331169870,1720116646929,-561.39,0.00013972,2]
[331169871,1720116646938,-500.0,0.00013972,2]
[331169872,1720116646949,-500.0,0.00013972,2]
[331169873,1720116646958,-500.0,0.00013972,2]
[331169874,1720116646967,-500.0,0.00013972,2]
[331169875,1720116646979,-500.0,0.00013972,2]